Cogmind - Beta 16 @@@ ROGUE MODE // 2025.10.23 @ 16:40:15 Player: Enzo Result: Destroyed by S-10 Pest with Light Assault Rifle Performance ------------- Evolutions (0) 0 Regions Visited (2) 400 Robots Destroyed (26) 130 Value Destroyed (610) 610 Prototype IDs (2) 40 Alien Tech Used (0) 0 Bonus (0) 0 TOTAL SCORE: 1180 Bonus ------- None Cogmind --------- Core Integrity 0/250 Matter 90/300 Energy 200/200 System Corruption 0% Temperature Cool (0) Movement Rolling (125) Ox3 Location -10/Subcaves Parts ------- > --- POWER (1) -------- Subdweller Power Source > --- PROPULSION (2) --- Wheel > --- UTILITY (2) ------ Large Storage Unit Signal Interpreter > --- WEAPON (2) ------- Subdweller Laser Subdweller Machine Gun > --- INVENTORY (15) --- Subdweller Power Source Structural Scanner Sensor Array Improved Terrain Scanner Seismic Detector Makeshift Hacking Suite Subdweller Laser Subdweller Laser Beam Cannon Slug Cannon Grenade Launcher Grenade Launcher Subdweller Shrapnel Launcher Mining Laser Peak State ------------ > --- POWER ------------ Subdweller Power Source > --- PROPULSION ------- Wheel Subdweller Monowheel > --- UTILITY ---------- Large Storage Unit Structural Scanner > --- WEAPON ----------- Subdweller Laser Slug Cannon > --- INVENTORY -------- Subdweller Power Source Wheel Sensor Array Signal Interpreter Improved Terrain Scanner Seismic Detector Makeshift Hacking Suite Subdweller Laser Subdweller Laser Beam Cannon Subdweller Machine Gun Grenade Launcher Grenade Launcher Subdweller Shrapnel Launcher Mining Laser [Rating: 15] Favorites ----------- Power Ion Engine Engine Ion Engine Propulsion Wheel Wheel Wheel Utility Large Storage Unit Device Seismic Detector Storage Large Storage Unit Processor Signal Interpreter Weapon Beam Cannon Energy Gun Subdweller Laser Energy Cannon Beam Cannon Ballistic Gun Assault Rifle Ballistic Cannon Slug Cannon Launcher Grenade Launcher Special Weapon Mining Laser Build | -11 -10 -10 ------- Run | Yrd Mat Sub Slots Evolved . | . . . Power . | . . . Propulsion . | . . . Utility . | . . . Weapon . | . . . Parts Attached 34 | 7 14 13 Power 6 | 1 2 3 Engine 6 | 1 2 3 Core . | . . . Reactor . | . . . Propulsion 8 | 2 4 2 Treads . | . . . Leg . | . . . Wheel 8 | 2 4 2 Hover . | . . . Flight . | . . . Utility 6 | 1 3 2 Device 2 | . 1 1 Storage 3 | 1 2 . Processor 1 | . . 1 Hackware . | . . . Protection . | . . . Artifact . | . . . Weapon 14 | 3 5 6 Energy Gun 3 | 1 . 2 Energy Cannon 2 | . 2 . Ballistic Gun 3 | 2 . 1 Ballistic Cannon 1 | . . 1 Launcher 4 | . 2 2 Special Weapon 1 | . 1 . Impact Weapon . | . . . Slashing Weapon . | . . . Piercing Weapon . | . . . Special Melee Weapon . | . . . Unidentified Prototypes . | . . . Parts Lost 4 | . . 4 Power 2 | . . 2 Propulsion 2 | . . 2 Utility . | . . . Weapon . | . . . Highest Loss Streak 2 | . . 2 To Critical Strikes . | . . . Average Backups 10 | 1 8 12 Power . | . 1 . Propulsion . | . . . Utility 3 | . 2 4 Weapon 4 | . 3 6 Tool/Special . | . . . Unused Backups 8 | . 2 6 Power 2 | . . 2 Propulsion 1 | . 1 . Utility 3 | . . 3 Weapon 2 | . 1 1 Tool/Special . | . . . Average Slot Usage (%) 98 | . 99 97 Engine 13 | . 14 13 Wheel 26 | . 28 25 Device 12 | . 13 11 Storage 14 | . 14 14 Processor 1 | . . 2 Energy Gun 4 | . 2 7 Energy Cannon 17 | . 21 13 Ballistic Gun 2 | . 3 2 Ballistic Cannon 1 | . . 2 Peak Build Rating 15 | 6 8 15 Average Rating 8 | 4 7 10 On Entrance 4 | . 6 8 Avg Prop Armor Cover (%) . | . . . Naked Turns . | . . . Heaviest Build 37 | 14 32 37 Greatest Support 30 | 20 26 30 Greatest Overweight (x) 3 | . 1 3 Average Overweight (x) 1 | . . 1 Largest Inventory Capacity 15 | 8 15 15 Average Capacity 13 | 6 12 15 Most Carried 15 | 5 10 15 Average Carried 10 | 1 8 12 Final Capacity 15 | 8 15 15 Final Carried 14 | 5 10 14 Class Distribution -------------------- 88% | Mutant 11% | Scavenger-Mutant Dominant Class ---------------- Mutant | -10/Materials Mutant | -10/Subcaves Resources | -11 -10 -10 ----------- Run | Yrd Mat Sub Matter Collected 772 | 291 261 220 Remotely . | . . . Salvage Created 688 | 108 312 268 Parts 53 | 3 28 22 Haulers Intercepted 2 | . 2 . Recyclers Shooed 1 | . 1 . Parts Field Recycled . | . . . Retrieved Matter . | . . . Parts Self-Destructed . | . . . Prevented . | . . . Parts Restored . | . . . Kills | -11 -10 -10 ------- Run | Yrd Mat Sub Combat Hostiles Destroyed 18 | . 9 9 Guns 5 | . 3 2 Cannons 8 | . 3 5 AOE 5 | . 3 2 Classes Destroyed 9 | 2 6 1 Worker 1 | . 1 . Builder 1 | . 1 . Tunneler 1 | 1 . . Hauler 2 | . 2 . Recycler 1 | 1 . . Watcher 2 | . 2 . Swarmer 6 | . 6 . Grunt 3 | . 3 . Subdweller 9 | . . 9 Best Kill Streak 4 | 1 4 3 Combat Bots Only 3 | . 3 3 Max Kills in Single Turn 2 | 1 2 2 Gunslinging . | . . . Exploded 2 | . 1 2 Melee . | . . . Uniques/NPCs Destroyed . | . . . Combat | -11 -10 -10 -------- Run | Yrd Mat Sub Hostile Shots Fired 92 | . 37 55 Missed 21 | . 5 16 Hits 71 | . 32 39 Projectile 71 | . 32 39 AOE 3 | . . 3 Critical Strikes 1 | . . 1 Damage Taken 1147 | 36 311 800 Core 255 | . 47 208 Absorbed by Shields . | . . . Core Remaining (%) 100 | 100 . . Volleys Fired 94 | 6 39 49 Largest 2 | 2 2 2 Hottest 120 | 60 120 120 Shots Fired 159 | 12 66 81 Gun 58 | 12 19 27 Cannon 81 | . 41 40 Launcher 13 | . 4 9 Special 7 | . 2 5 Kinetic 48 | 9 17 22 Thermal 94 | . 43 51 Explosive 12 | . 4 8 Electromagnetic 5 | 3 2 . Robot Hit Streak 12 | 8 7 12 Robot Miss Streak 3 | 1 3 3 Penetration Max . | . . . Secondary Targets . | . . . Shots Hit Robots 87 | 10 31 46 Core Hits 38 | 4 19 15 Critical Kills 2 | . 1 1 Critical Parts Destroyed . | . . . Critical Strikes 2 | . 1 1 Meltdown 1 | . 1 . Destroy 1 | . . 1 Melee Attacks . | . . . Impact . | . . . Slashing . | . . . Piercing . | . . . Sneak Attacks . | . . . Combat Hostiles . | . . . Follow-up Attacks . | . . . Damage Inflicted 2157 | 160 701 1296 Guns 670 | 121 138 411 Cannons 805 | . 333 472 Explosions 682 | 39 230 413 Melee . | . . . Ramming . | . . . Kinetic 458 | 79 115 264 Thermal 1035 | 39 333 663 Explosive 599 | . 230 369 Electromagnetic 65 | 42 23 . Impact . | . . . Slashing . | . . . Piercing . | . . . Highest Corruption . | . . . Average Corruption . | . . . Corruption Purged . | . . . Corruption Blocked . | . . . Overload Shots . | . . . Overflow Damage 13 | 9 4 . Projectiles 4 | . 4 . Explosions 9 | 9 . . Melee . | . . . Knockbacks 2 | . . 2 Impact . | . . . Kinetic 2 | . . 2 Secondary . | . . . Self-Inflicted Damage 77 | 37 . 40 Shots 2 | 1 . 1 Rammed . | . . . Targets Rammed . | . . . Kicked . | . . . Crushed . | . . . Highest Temperature 267 | 12 267 12 Average Temperature 79 | 12 85 10 Received Heat Transfer 165 | . 69 96 Siege Activations . | . . . Martial Activations . | . . . Shielding Activations . | . . . Robots Disrupted . | . . . Combat Hostiles . | . . . Robots Corrupted . | . . . Combat Hostiles . | . . . Parts Fried . | . . . Impact Corruptions . | . . . Robots Melted 1 | . 1 . Combat Hostiles . | . . . Parts Melted 3 | . 1 2 Heat Transferred 1795 | 50 703 1042 Parts Sabotaged . | . . . Parts Stolen . | . . . Parts Stripped . | . . . Power Chain Reactions 1 | 1 . . Alert | -11 -10 -10 ------- Run | Yrd Mat Sub Maximum Alert Level . | . . . Low Security (%) 100 | 100 100 . Level 1 . | . . . Level 2 . | . . . Level 3 . | . . . Level 4 . | . . . Level 5 . | . . . High Security . | . . . Max Security . | . . . Peak Influence 148 | 5 148 . Initial . | . . . Average 46 | 1 50 . Influence Increases 414 | 10 374 30 Destroy 0b10 Robot/C 180 | . 180 . Destroy 0b10 Robot/NC 40 | 10 30 . Destroy Leader 48 | . 48 . Successful Hack 20 | . 20 . Select Force Hacks 30 | . 30 . Disable Machine 30 | . 30 . Destroy Structure 21 | . 21 . Lose Combat Pursuer 45 | . 15 30 Influence Decreases 388 | 10 344 34 Entered New Map 15 | . . 15 Time Decay 373 | 10 344 19 Squads Dispatched 2 | . 2 . Investigation 1 | . 1 . Extermination . | . . . Reinforcement 1 | . 1 . Assault . | . . . Garrison . | . . . Intercept . | . . . Searches Triggered . | . . . Construction Impeded . | . . . Haulers Reinforced . | . . . Active Scanning Responses . | . . . Cargo Convoy Interrupts . | . . . Stealth | -11 -10 -10 --------- Run | Yrd Mat Sub Distress Signals . | . . . Communications Jammed . | . . . Distress Signals . | . . . Times Spotted 29 | . 13 16 Peak Tracking Total 6 | . 5 6 Tactical Retreats 2 | . 1 1 Traps | -11 -10 -10 ------- Run | Yrd Mat Sub Traps Triggered . | . . . Indirectly . | . . . Trap Hack Attempts . | . . . Triggered . | . . . Disarmed . | . . . Reprogrammed . | . . . Reused . | . . . Traps Extracted . | . . . Installed . | . . . Triggered . | . . . Machines | -11 -10 -10 ---------- Run | Yrd Mat Sub Machines Disabled 4 | . 2 2 Max in Single Turn 1 | . 1 1 Machines Repaired . | . . . Machines Dismantled . | . . . Machines Sabotaged . | . . . Overloaded Fab Kills . | . . . Hacking | -11 -10 -10 --------- Run | Yrd Mat Sub Machines Accessed 6 | . 6 . Terminals 5 | . 5 . Fabricators . | . . . Repair Stations . | . . . Recycling Units 1 | . 1 . Scanalyzers . | . . . Garrison Access . | . . . Total Hacks 22 | . 22 . Successful 10 | . 10 . Failed 12 | . 12 . Catastrophic . | . . . Database Lockouts . | . . . Manual 8 | . 8 . Terminals 21 | . 21 . Fabricators . | . . . Repair Stations . | . . . Recycling Units 1 | . 1 . Scanalyzers . | . . . Garrison Access . | . . . Terminal Hacks 8 | . 8 . Record 1 | . 1 . Robot Analysis 1 | . 1 . Prototype ID Bank 1 | . 1 . Branch Access Points 1 | . 1 . Emergency Access Points 1 | . 1 . Locate Traps 3 | . 3 . Fabricator Hacks . | . . . Repair Station Hacks . | . . . Recycling Unit Hacks . | . . . Scanalyzer . | . . . Garrison Access Hacks . | . . . Unauthorized Hacks 2 | . 2 . Terminals 1 | . 1 . Botnet 1 | . 1 . Fabricators . | . . . Repair Stations . | . . . Recycling Units 1 | . 1 . Tunnel 1 | . 1 . Scanalyzers . | . . . Garrison Access . | . . . Data Cores Recovered . | . . . Used . | . . . Hacking Detections 5 | . 5 . Full Trace Events . | . . . Feedback Events . | . . . Feedback Blocked . | . . . Robot Schematics Acquired . | . . . Robots Built . | . . . Authchips . | . . . Time . | . . . Total Robot Build Rating . | . . . Part Schematics Acquired . | . . . Parts Built . | . . . Authchips . | . . . Time . | . . . Total Part Build Rating . | . . . Part Studies Acquired . | . . . Parts Repaired . | . . . Time . | . . . Parts Recycled . | . . . Recycled Matter . | . . . Retrieved Matter . | . . . Retrieved Components . | . . . Parts Scanalyzed . | . . . Part Schematics Acquired . | . . . Parts Damaged . | . . . Bothacking | -11 -10 -10 ------------ Run | Yrd Mat Sub Used RIF Installer . | . . . Robots Hacked . | . . . Non-combat . | . . . Combat . | . . . Robot Hacks Applied . | . . . Relay Couplers Released . | . . . Fabnet Peak Effective % . | . . . Robots Rewired . | . . . Allies Hacked . | . . . Hacks Repelled . | . . . Allies | -11 -10 -10 -------- Run | Yrd Mat Sub Total Allies . | . . . Largest Group . | . . . Highest-Rated Group . | . . . Highest-Rated Ally . | . . . Total Orders . | . . . Ally Attacks . | . . . Total Damage . | . . . Kills . | . . . Allies Corrupted . | . . . Allies Melted . | . . . Intel | -11 -10 -10 ------- Run | Yrd Mat Sub Active Infowar (turns) 2116 | . 1070 1046 Structural 535 | . . 535 Seismic 1581 | . 1070 511 Robot Analysis Total 1 | . 1 . Derelict Logs Recovered 1 | . . 1 Drone Launches . | . . . Drone Recoveries . | . . . Exploration | -11 -10 -10 ------------- Run | Yrd Mat Sub Turns Passed 2444 | 87 1090 1267 Spaces Moved 1807 | 64 704 1039 Core 3 | 3 . . Treads . | . . . Legs . | . . . Wheels 1804 | 61 704 1039 Hover . | . . . Flight . | . . . Fastest Speed 50 | 50 80 95 Average Speed 96 | 78 90 101 Slowest Speed 125 | 80 105 125 Overloaded Moves . | . . . Propulsion Burnouts . | . . . Robots Hopped . | . . . Potential Cave-ins . | . . . Cave-ins Triggered . | . . . Exploration Rate (%) 52 | 4 94 60 Regions Visited 2 Branch Regions 1 Pre-discovered Areas 2 | . 1 1 Known Exits Taken . | . . . Unknown Exits Taken 2 | 1 1 . Scrap Searched . | . . . Spaces Dug . | . . . Terrain Destroyed 78 | 1 18 59 Melee . | . . . Projectile 3 | . . 3 AOE 75 | 1 18 56 Terrain Rammed . | . . . Walls Destroyed . | . . . Machines Disabled . | . . . Actions | -11 -10 -10 --------- Run | Yrd Mat Sub Total 2318 | 85 1082 1151 Wait 328 | 4 296 28 Move 1805 | 63 703 1039 Hop . | . . . Pick Up 23 | 5 10 8 Fast Attach 17 | 6 7 4 Attach 2 | . . 2 Detach . | . . . Swap 30 | 1 13 16 Drop 19 | . 14 5 Fire 94 | 6 39 49 Melee . | . . . Ram . | . . . Kick . | . . . Crush . | . . . Escape Stasis . | . . . Rewire . | . . . Trap . | . . . Miscellaneous . | . . . Route ------- -11/Scrapyard -10/Materials (discovered 5 exits: [*Mat x3] / *Min / [*Sub]) -10/Subcaves (discovered 2 exits: *Mat / *Rec) History --------- Turn | Location | Event 9 | -11/Scrapyard | Discovered new exit (range 16) 88 | -11/Scrapyard | Entered Materials 276 | -10/Materials | Discovered new exit (range 15) 306 | -10/Materials | Build established: Mutant 451 | -10/Materials | Discovered new exit (range 15) 646 | -10/Materials | Discovered new exit (range 15) 897 | -10/Materials | Discovered new exit (range 16) 929 | -10/Materials | Identified exit to Mines 1152 | -10/Materials | Discovered new exit (range 6) 1178 | -10/Materials | Entered Subcaves 1179 | -10/Subcaves | Approached by a straggling Scientist 1206 | -10/Subcaves | Identified exit to Recycling 1211 | -10/Subcaves | Ambushed by Subdwellers from Twisted Machinery 1561 | -10/Subcaves | Shifting Twisted Machinery released Sub. Shrapnel Launcher 1733 | -10/Subcaves | Shifting Twisted Machinery released Sub. Laser 1735 | -10/Subcaves | Shifting Twisted Machinery released Mak. Hacking Suite 1832 | -10/Subcaves | Visited Clippyterm 1911 | -10/Subcaves | Core integrity fell below 50% 2208 | -10/Subcaves | Discovered new exit (range 13) 2225 | -10/Subcaves | Identified exit to Materials 2244 | -10/Subcaves | Core integrity fell below 20% 2413 | -10/Subcaves | Learned location of Zion (-7) 2413 | -10/Subcaves | Met a Zionite searching for "candidates" 2445 | -10/Subcaves | Destroyed by S-10 Pest with Light Assault Rifle Last Messages --------------- 02178_ Acquired 6 matter. 02208_ EXIT=FOUND 02222_ 8D-NL3(u) tweaks Twisted Machinery. 02225_ EXIT=IDENTIFIED: MATERIALS 02239_ The unstable cave ceiling collapses. 02250_ Sub. Monowheel destroyed. 02253_ Wheel destroyed. 02254_ EA-REN(R) destroyed. 02260_ Acquired 11 matter. 02265_ Subatomizers dissect the Disposable Heat Sink. 02271_ Acquired Sub. Power Source. 02280_ Subatomizers dissect the Disposable Heat Sink. 02374_ ZU-O1L(z): "She is not going to be happy we haven't found any suitable candidates yet." 02413_ ZU-O1L(z): "Hey you! It's really dangerous down here, I feel that you could die at any moment. For your health and safety might I suggest a trip to Zion?" World map updated: -7/Zion. 02430_ CK-DX7(u) tweaks Twisted Machinery. 02440_ Destroyed Flight Unit. Map ----- +----------------------------------------------------+ | ?????????????????????????????????????????????????? | | ?????????????????????????????????????????????????? | | ?????????????????????????????????????????????????? | | ?????????????????????????????????????????????????? | | ??????????????????????##?????????????????????????? | | ?????????????????????? ####??#####??????????????? | | ?????????????????????? #?# #??????????????? | | ??????????????????????? ## #??????????????? | | ?????????????????????????# # #??????????????? | | ????????????????????##????# "##?????????????? | | ??????????????????#?#>?????# """#?????????????? | | ????????????????#"""" ?????# """ #?????????????? | | ????????????????#" " "????# """ ##?????????????? | | ????????????????#" ????#"" ##??????????????? | | ????????????????? ???##" ##???????????????? | | ?????????????????? ???# ####??????????????? | | ??????????????????? ???# ### #####??????????? | | ??????????????????## ??### ## #??????????? | | ?????????????????## ### ## "" #??????????? | | ?????????????????# # "" #??????????? | | ?????????????????# """ #??????????? | | ?????????????????# "" #????????### | | ??????????????#### ## "" """#???????## | | ????????????# # s ###" "" " #??????## | | ???????? sss##""""" # ##?????# | | ???????? ## @"## """ ##""####### | | ?????????# ## ??# "#### # # | | ?????????#?????#???# ##??## | | ???????????????????# ##????## | | ???????????????????## #??????# # # # ## | | ????????????????????#### #??????## ##############? | | ???????????????????????###???????###?????????????? | | ?????????????????????????????????????????????????? | | ?????????????????????????????????????????????????? | | ?????????????????????????????????????????????????? | | ?????????????????????????????????????????????????? | | ?????????????????????????????????????????????????? | | ?????????????????????????????????????????????????? | | ?????????????????????????????????????????????????? | | ?????????????????????????????????????????????????? | | ?????????????????????????????????????????????????? | | ?????????????????????????????????????????????????? | | ?????????????????????????????????????????????????? | | ?????????????????????????????????????????????????? | | ?????????????????????????????????????????????????? | | ?????????????????????????????????????????????????? | | | | | | | | | +----------------------------------------------------+ Best States ------------- Heat Dissipation 25 Energy Generation 15 Energy Capacity 250 Matter Stores 300 Matter Capacity 300 Sight Range 16 Terrain Scan Density 10 Evasion (%) 44 Item Schematics ----------------- None Robot Schematics ------------------ None Fabricated ------------ Nothing Repaired ---------- Nothing Studied --------- None Alien Tech Used ----------------- None Achievements -------------- None Challenges ------------ None Game ------ Seed LaserWeaponsBox Manual? 0 Play Time 00:27:22 Cumulative 72.1 hours Start 2025.10.23 @ 15:56:04 End 2025.10.23 @ 16:40:15 Sessions 3 Manual Loads 0 Difficulty Rogue Special Mode None Game No. 152 Rogue 152 Adventurer 0 Explorer 0 Win Type - Total 0 Types 0/0/0/0/0/0/0/0/0/0 Lore% 35 Gallery% 39 Achievement% 21 Wizard Run 0 Options --------- Layout 0 ASCII 0 Keyboard 0 Movement Numpad Keybinds 0 Fullscreen 2 Font 24/Smallcaps Map View 76x50 Zoom Use 0% Tactical HUD 1 Map Filters NONE Filters NONE Steam 1 RUN: c6377039-e1e6-4068-bc63-971a671badd5